bitfinex-derivatives/quotes_ETHF0:USTF0_20210403
["timestamp","ask_amount","ask_price","bid_price","bid_amount"]
[1617408002083,2.72685651,2130.1,2130.0,3.06221344]
[1617408004584,2.25035651,2130.1,2130.0,7.98229102]
[1617408004783,1.1,2130.1,2130.0,7.98229102]
[1617408004983,2.90695,2130.4,2130.0,3.06221344]
[1617408005182,2.90695,2130.4,2130.0,9.07534596]
[1617408005382,2.90695,2130.4,2130.1,0.14910642]
[1617408005584,2.90695,2130.4,2130.3,4.91959829]
[1617408005982,13.0,2131.5,2130.1,6.16194878]
[1617408005983,13.0,2131.5,2130.2,6.01838153]
[1617408006183,13.0,2131.5,2130.3,6.16728942]
[1617408006383,13.0,2131.5,2130.3,7.40138942]
[1617408006584,13.0,2131.5,2131.2,4.92383113]
[1617408007084,13.0,2131.5,2131.3,0.14907262]
[1617408007282,13.0,2131.5,2131.3,6.83077631]
[1617408007685,13.0,2131.5,2131.4,0.14900903]
[1617408008485,13.0,2131.5,2131.4,5.07293981]
[1617408008685,13.0,2131.5,2131.4,4.92393078]
[1617408008884,15.90695,2131.5,2131.3,4.92423399]
[1617408009284,15.90695,2131.5,2131.4,0.14877318]
[1617408009587,15.90695,2131.5,2131.4,5.07277554]
[1617408010786,15.90695,2131.5,2131.4,0.14877318]
[1617408010986,15.90695,2131.5,2131.3,4.92425033]
[1617408011186,15.90695,2131.5,2131.2,4.92430916]
[1617408011586,15.90695,2131.5,2131.3,0.14878169]
[1617408011788,15.90695,2131.5,2131.3,5.07294358]
[1617408012288,15.90695,2131.5,2131.4,0.14876467]
[1617408012488,15.90695,2131.5,2131.4,5.07264457]
[1617408012788,15.90695,2131.5,2131.4,0.14876467]
[1617408013390,15.90695,2131.5,2131.3,9.07374369]
[1617408013790,15.90695,2131.5,2131.4,0.14875587]
[1617408014992,17.00695,2131.5,2131.4,0.14875587]
[1617408015292,14.1,2131.5,2131.4,6.166255]
[1617408015691,14.1,2131.5,2131.4,0.14875587]
[1617408016292,14.1,2131.5,2131.4,7.25937565]
[1617408016695,14.1,2131.5,2131.4,0.14875587]
[1617408016893,13.8033,2131.5,2131.4,0.14875587]
[1617408017096,2.90695,2132.3,2131.4,8.36519427]
[1617408017394,2.90695,2132.3,2131.9,7.12044568]
[1617408017594,3.5125,2134.1,2131.9,9.06394568]
[1617408017795,3.5125,2134.1,2132.1,7.12004941]
[1617408017994,12.0,2133.4,2132.1,7.12004941]
[1617408018198,12.0,2133.4,2132.8,4.92906395]
[1617408018395,12.0,2133.4,2132.9,4.92888301]
[1617408018796,12.0,2133.4,2133.0,4.9287678]
[1617408018996,12.9481,2133.4,2133.3,2.90695]
[1617408019196,12.9481,2133.4,2133.3,4.56565]
[1617408019599,12.0,2133.4,2133.3,4.56565]
[1617408020598,12.9422,2133.4,2133.3,4.56565]
[1617408021201,12.0,2133.4,2133.3,4.56565]
[1617408025009,12.0,2133.4,2133.3,2.90695]
[1617408026311,12.0,2133.4,2133.3,1.43625]
[1617408026711,12.9327,2133.4,2133.3,1.43625]
[1617408026911,12.0,2133.4,2133.3,1.43625]
[1617408027314,13.1,2133.4,2133.3,1.43625]
[1617408029416,14.0352,2133.4,2133.3,1.43625]
[1617408030716,13.1,2133.4,2133.3,1.43625]
[1617408038723,13.1,2133.4,2131.7,0.9451]
[1617408039023,14.8433,2133.4,2131.7,0.9451]
[1617408039223,14.8433,2133.4,2133.1,2.90695]
[1617408039923,15.7795,2133.4,2133.1,2.90695]
[1617408040426,14.8433,2133.4,2133.1,2.90695]
[1617408041224,2.90695,2133.2,2133.1,2.90695]
[1617408041523,4.00695,2133.2,2133.1,2.90695]
[1617408042628,4.93615,2133.2,2133.1,2.90695]
[1617408043327,4.00695,2133.2,2133.1,2.90695]
[1617408044429,4.94485,2133.2,2133.1,2.90695]
[1617408044829,4.00695,2133.2,2133.1,2.90695]
[1617408045830,4.00695,2133.2,2131.4,4.8916346]
[1617408046230,4.00695,2133.2,2131.3,4.89190874]
[1617408046632,4.00695,2133.2,2131.2,5.81899578]
[1617408047031,4.00695,2133.2,2131.2,0.927]
[1617408047229,1.1,2133.2,2132.4,2.90695]
[1617408049335,2.90695,2132.5,2132.4,2.90695]
[1617408050633,4.53495,2132.5,2132.4,2.90695]
[1617408051334,5.63495,2132.5,2132.4,2.90695]
[1617408052236,5.63495,2132.5,2130.8,4.8913406]
[1617408052838,5.63495,2132.5,2130.7,4.89158162]
[1617408053038,5.63495,2132.5,2130.8,4.89582189]
[1617408053237,2.728,2132.5,2131.9,2.90695]
[1617408055240,2.90695,2132.0,2131.9,2.90695]
[1617408055441,5.81055,2132.0,2131.9,2.90695]
[1617408055742,5.81055,2132.0,2131.9,3.05437296]
[1617408060049,1.8036,2132.0,2131.9,3.05437296]
[1617408060250,1.1,2132.6,2131.9,3.05437296]
[1617408060452,2.7338,2133.3,2131.9,3.05437296]
[1617408060752,2.7338,2133.3,2132.0,0.14705804]
[1617408061352,2.7338,2133.3,2132.8,2.90695]
[1617408062252,3.6755,2133.3,2132.8,2.90695]
[1617408062857,2.7338,2133.3,2132.8,2.90695]
[1617408063356,2.90695,2132.9,2132.8,2.90695]
[1617408063555,4.00695,2132.9,2132.8,2.90695]
[1617408065859,4.00695,2132.9,2132.8,3.05389176]
[1617408067963,12.0,2133.4,2132.8,3.05389176]
[1617408068163,12.0,2133.4,2132.8,4.28259176]
[1617408068462,12.0,2133.4,2132.9,0.14707204]
[1617408069362,12.0,2133.4,2133.2,2.90695]
[1617408070662,12.0,2133.4,2133.3,0.14708531]
[1617408071465,14.90695,2133.4,2133.3,0.14708531]
[1617408073270,11.85291469,2133.3,2133.2,2.90695]
[1617408076677,11.85291469,2133.3,2133.2,3.85055]
[1617408076975,11.85291469,2133.3,2133.2,2.90695]
[1617408077978,12.95291469,2133.3,2133.2,2.90695]
[1617408078478,12.95291469,2133.3,2133.2,3.05236799]
[1617408079478,14.60701469,2133.3,2133.2,3.05236799]
[1617408080279,14.60701469,2133.3,2133.2,2.90695]
[1617408082181,15.54701469,2133.3,2133.2,2.90695]
[1617408082383,14.60701469,2133.3,2133.2,2.90695]
[1617408085389,14.60701469,2133.3,2133.2,3.05419757]
[1617408085892,14.60701469,2133.3,2133.2,7.9793607]
[1617408086293,14.60701469,2133.3,2133.2,3.05419757]
[1617408086692,14.60701469,2133.3,2133.2,7.97958185]
[1617408086893,14.60701469,2133.3,2133.2,7.83233428]
[1617408087391,14.60701469,2133.3,2133.2,7.97951274]
[1617408087892,14.60701469,2133.3,2133.2,2.90695]
[1617408088394,15.54871469,2133.3,2133.2,2.90695]
[1617408088592,14.60701469,2133.3,2133.2,7.83212608]
[1617408089092,14.60701469,2133.3,2133.2,7.97929353]
[1617408089295,14.60701469,2133.3,2133.2,3.05411745]
[1617408089494,14.60701469,2133.3,2133.2,2.90695]
[1617408090903,14.60701469,2133.3,2133.1,4.92527304]
[1617408091305,14.60701469,2133.3,2132.9,4.92694367]
[1617408091505,14.60701469,2133.3,2132.9,7.83389367]
[1617408091705,2.90695,2133.0,2132.9,7.83389367]
[1617408091905,4.00695,2133.0,2132.9,7.83389367]
[1617408092607,4.00695,2133.0,2132.9,9.71809367]
[1617408093005,4.00695,2133.0,2132.9,7.83389367]
[1617408093906,4.00695,2133.0,2132.9,7.98108099]
[1617408094307,2.90695,2133.0,2132.9,7.98108099]
[1617408095006,2.90695,2133.0,2132.9,7.83389367]
[1617408097711,2.90695,2133.0,2132.9,4.92694367]
[1617408098411,2.90695,2133.0,2132.5,7.13252301]
[1617408098813,2.90695,2133.0,2132.6,0.14718673]
[1617408099714,13.50701469,2133.3,2132.7,2.90695]
[1617408099914,14.45231469,2133.3,2132.7,2.90695]
[1617408100114,13.50701469,2133.3,2132.7,2.90695]
[1617408100314,13.50701469,2133.3,2133.2,4.93789688]
[1617408101716,16.41396469,2133.3,2133.2,4.93789688]
[1617408103120,16.41396469,2133.3,2133.1,6.03661343]
[1617408103618,16.41396469,2133.3,2133.2,4.9391309]
[1617408104117,16.41396469,2133.3,2133.1,4.93933481]
[1617408108425,16.41396469,2133.3,2133.1,4.88343481]
[1617408109927,16.41396469,2133.3,2132.8,6.03710683]
[1617408110128,16.41396469,2133.3,2132.8,4.35720683]
[1617408110428,16.41396469,2133.3,2132.8,2.73550683]
[1617408110628,16.41396469,2133.3,2132.3,7.13353118]
[1617408110831,16.41396469,2133.3,2132.0,7.13413172]
[1617408111029,13.5806,2133.2,2132.0,7.13413172]
[1617408111229,13.5806,2133.2,2132.1,0.14536558]
[1617408111831,13.5806,2133.2,2132.4,2.90695]
[1617408113731,2.90695,2132.5,2132.1,2.90695]
[1617408114033,5.24465,2132.5,2132.1,2.90695]
[1617408114530,4.31055,2132.5,2132.1,2.90695]
[1617408114731,4.31055,2132.5,2132.2,0.14520027]
[1617408116032,4.31055,2132.5,2132.1,2.90695]
[1617408117731,2.90695,2132.2,2132.1,2.90695]
[1617408120738,2.90695,2132.2,2132.1,3.05208143]
[1617408120938,2.90695,2132.2,2132.1,2.90695]
[1617408121138,2.90695,2132.2,2132.1,8.93780267]
[1617408121437,2.90695,2132.2,2132.1,3.05207689]
[1617408122239,2.90695,2132.2,2132.1,9.08284588]
[1617408122539,2.90695,2132.2,2132.1,3.05207689]
[1617408123239,2.90695,2132.2,2132.1,9.08293725]
[1617408123940,2.90695,2132.2,2132.1,8.93781036]
[1617408125644,2.90695,2132.2,2132.1,3.0518726]
[1617408126344,3.83675,2132.2,2132.1,3.0518726]
[1617408127548,0.9298,2132.2,2132.1,10.17549394]
[1617408127947,11.85291469,2133.3,2132.1,10.17549394]
[1617408127948,11.85291469,2133.3,2132.1,4.7371726]
[1617408128147,11.85291469,2133.3,2132.2,53.4703]
[1617408128448,11.85291469,2133.3,2132.9,4.93149923]
[1617408128650,11.85291469,2133.3,2132.8,4.93150175]
[1617408128848,11.85291469,2133.3,2132.9,4.93147303]
[1617408129852,11.85291469,2133.3,2133.1,2.90695]
[1617408130651,11.85291469,2133.3,2132.9,4.93147303]
[1617408130851,11.85291469,2133.3,2132.9,3.29597303]
[1617408131053,11.85291469,2133.3,2132.6,6.02964926]
[1617408131453,78.2027,2133.1,2132.5,6.02974396]
[1617408131652,80.0749,2133.1,2132.5,6.02974396]
[1617408131853,2.90695,2132.6,2132.4,6.03010187]
[1617408132054,3.85515,2132.6,2132.4,6.03010187]
[1617408132254,3.85515,2132.6,2132.3,8.93713714]
[1617408133256,3.85515,2132.6,2132.4,6.02977734]
[1617408133456,2.90695,2132.6,2132.4,6.02977734]
[1617408133958,2.90695,2132.6,2132.3,8.93667016]
[1617408134558,3.83115,2132.6,2132.5,6.0294215]
[1617408136359,3.83115,2132.6,2132.5,6.17424639]
[1617408136559,3.83115,2132.6,2132.5,0.14482489]
[1617408136958,3.83115,2132.6,2132.5,6.17396003]
[1617408137158,3.83115,2132.6,2132.5,6.02913514]
[1617408137358,3.83115,2132.6,2132.5,6.17392242]
[1617408137561,0.9242,2132.6,2132.5,6.17392242]
[1617408137860,0.9242,2132.6,2132.5,0.14478728]
[1617408138359,0.9242,2132.6,2132.3,2.90695]
[1617408138360,0.9242,2132.6,2132.4,0.14465208]
[1617408138659,0.9242,2132.6,2132.5,0.14464759]
[1617408139060,0.9242,2132.6,2132.4,0.14460563]
[1617408139259,0.9242,2132.6,2132.3,10.03192441]
[1617408139260,0.9242,2132.6,2132.5,0.14453411]
[1617408139760,0.9242,2132.6,2132.4,0.14454769]
[1617408139961,0.9242,2132.6,2132.5,0.14464117]
[1617408140160,2.90695,2133.0,2132.5,0.14464117]
[1617408140460,2.90695,2133.0,2132.4,0.1446281]
[1617408140661,2.90695,2133.0,2132.7,6.02895988]
[1617408141161,2.90695,2133.0,2132.9,4.93277903]
[1617408143464,2.90695,2133.0,2132.8,7.84168219]
[1617408144466,2.90695,2133.0,2132.8,2.90695]
[1617408145165,2.90695,2133.0,2132.8,7.84173506]
[1617408146566,2.90695,2133.0,2132.9,4.93449367]
[1617408149669,2.90695,2133.0,2132.8,7.84156263]
[1617408149870,4.14205,2133.0,2132.8,7.84156263]
[1617408150670,4.14205,2133.0,2132.8,4.93461263]
[1617408150872,4.14205,2133.0,2132.7,4.93478634]
[1617408151275,4.14205,2133.0,2132.6,4.93490397]
[1617408152075,3.83705,2132.7,2132.6,4.93490397]
[1617408152275,3.83705,2132.7,2132.5,4.93523667]
[1617408154784,3.83705,2132.7,2132.4,7.8412156]
[1617408155783,3.83705,2132.7,2132.4,2.90695]
[1617408155983,3.83705,2132.7,2132.3,4.9345882]
[1617408156185,3.83705,2132.7,2132.2,4.93469621]
[1617408156885,3.83705,2132.7,2132.3,4.93467976]
[1617408157386,3.83705,2132.7,2132.2,4.93469573]
[1617408157586,3.83705,2132.7,2132.3,4.93463344]
[1617408158090,2.90695,2132.4,2132.3,4.93463344]
[1617408158388,1.9429,2132.4,2132.2,4.9347277]
[1617408158588,1.9429,2132.4,2132.3,0.14494467]
[1617408158791,1.9429,2132.4,2132.3,6.17559423]
[1617408158991,1.9429,2132.4,2132.3,0.14494467]
[1617408159289,0.9301,2132.7,2132.2,0.14477982]
[1617408159791,0.9301,2132.7,2132.5,6.0301883]
[1617408159992,0.9301,2132.7,2132.6,2.90695]
[1617408160391,0.9301,2132.7,2132.6,3.0517231]
[1617408160594,0.9301,2132.7,2132.6,9.08164786]
[1617408160893,2.90695,2132.9,2132.6,3.0517231]
[1617408161193,2.90695,2132.9,2132.7,0.14459426]
[1617408161392,2.90695,2132.9,2132.8,6.02947036]
[1617408161892,3.84255,2132.9,2132.8,6.17401007]
[1617408162793,3.84255,2132.9,2132.8,0.14453971]
[1617408162992,3.84255,2132.9,2132.8,52.99353971]
[1617408163294,3.84255,2132.9,2132.8,52.849]
[1617408163694,3.84255,2132.9,2132.8,52.99346697]
[1617408164195,3.84255,2132.9,2132.8,0.14446697]
[1617408164397,3.84255,2132.9,2132.8,6.17367356]
[1617408164797,3.84255,2132.9,2132.8,4.93361808]
[1617408165299,3.84255,2132.9,2132.6,4.9338766]
[1617408165501,3.84255,2132.9,2131.1,9.31954469]
[1617408165502,5.72405,2132.9,2132.5,4.93395834]
[1617408166102,2.90695,2132.6,2132.5,7.84090834]
[1617408166599,2.90695,2132.6,2132.5,4.93395834]
[1617408167602,2.90695,2132.6,2132.4,4.93525777]
[1617408168700,2.90695,2132.6,2132.5,4.93526056]
[1617408169200,2.8171,2132.9,2132.4,4.93525636]
[1617408169400,0.9356,2132.9,2132.5,4.9349334]
[1617408169602,0.9356,2132.9,2132.5,5.07978325]
[1617408169804,0.9356,2132.9,2132.8,4.93731046]
[1617408170304,0.9356,2132.9,2132.6,6.17929192]
[1617408170305,0.9356,2132.9,2132.6,6.03449057]
[1617408170702,0.9356,2132.9,2132.8,2.90695]
[1617408172907,0.9356,2132.9,2132.8,3.05167503]
[1617408173105,0.9356,2132.9,2132.8,9.08581899]
[1617408174610,0.9356,2132.9,2132.8,8.94109396]
[1617408174816,0.9356,2132.9,2132.8,9.08589415]
[1617408177014,0.9356,2132.9,2132.8,2.90695]
[1617408177713,0.9356,2132.9,2132.8,8.94244643]
[1617408178315,0.9356,2132.9,2132.8,9.08722011]
[1617408180117,11.85291469,2133.3,2132.8,9.08722011]
[1617408180318,11.85291469,2133.3,2132.8,3.05172368]
[1617408180620,11.85291469,2133.3,2133.2,8.94510278]
[1617408181721,11.85291469,2133.3,2133.2,2.90695]
[1617408182019,11.85291469,2133.3,2133.2,8.9450251]
[1617408184019,11.85291469,2133.3,2133.2,9.08972866]
[1617408185121,11.85291469,2133.3,2133.2,3.05165356]
[1617408187224,11.36241469,2133.3,2133.2,3.05165356]
[1617408187426,11.27891469,2133.3,2133.2,3.05165356]
[1617408188331,12.0,2133.4,2133.2,3.05165356]
[1617408188827,12.0,2133.4,2133.3,0.14430099]
[1617408196537,12.0,2133.4,2133.3,1.24430099]
[1617408200642,12.0,2133.4,2133.3,9.44736163]
[1617408201442,12.0,2133.4,2133.3,1.1]
[1617408201443,11.0594,2133.4,2133.3,1.1]
[1617408202742,11.0594,2133.4,2133.3,6.00466083]
[1617408203042,11.0594,2133.4,2133.3,1.1]
[1617408203342,9.877,2133.4,2133.3,1.1]
[1617408204845,9.877,2133.4,2133.3,6.00475588]
[1617408205745,8.9284,2133.4,2133.3,6.00475588]
[1617408207148,8.9284,2133.4,2133.2,7.81204208]
[1617408207348,8.9284,2133.4,2133.2,2.90695]
[1617408208550,10.1649,2133.4,2133.2,2.90695]
[1617408210854,2.90695,2133.3,2132.2,4.90707837]
[1617408211054,2.90695,2133.3,2132.1,4.9077295]
[1617408211556,2.90695,2133.3,2131.8,4.90800193]
[1617408211957,2.90695,2133.3,2131.9,4.90795449]
[1617408212157,2.90695,2133.3,2132.0,4.9077231]
[1617408212557,2.90695,2133.3,2132.2,4.910368]
[1617408212857,2.90695,2133.3,2133.2,2.90695]
[1617408213155,8.9284,2133.4,2133.2,2.90695]
[1617408214355,8.9284,2133.4,2132.4,4.91099577]
[1617408214555,10.5029,2133.4,2132.4,4.91099577]
[1617408214756,10.5029,2133.4,2132.3,4.91128925]
[1617408214955,2.90695,2133.3,2133.2,2.90695]
[1617408215856,8.9284,2133.4,2133.2,2.90695]
[1617408216556,8.9284,2133.4,2132.3,4.91128925]
[1617408216759,10.2912,2133.4,2132.3,4.91128925]
[1617408216958,10.2912,2133.4,2132.7,2.90695]
[1617408217958,59.8426,2133.3,2131.5,4.91293232]
[1617408218960,59.8426,2133.3,2132.4,2.90695]
[1617408219461,59.8426,2133.3,2131.5,4.91293232]
[1617408219862,59.8426,2133.3,2131.2,4.91415591]
[1617408220063,59.8426,2133.3,2130.8,4.91468593]
[1617408220362,59.8426,2133.3,2130.7,4.9147068]
[1617408220662,13.6239,2133.2,2130.7,4.9147068]
[1617408220865,13.6239,2133.2,2131.2,2.90695]
[1617408221770,26.9587,2133.2,2131.2,2.90695]
[1617408222167,26.9587,2133.2,2131.2,4.35525]
[1617408223068,26.9587,2133.2,2132.7,2.90695]
[1617408224968,2.90695,2132.8,2132.7,2.90695]
[1617408225668,26.9587,2133.2,2132.7,2.90695]
[1617408227069,26.9587,2133.2,2133.1,2.90695]
[1617408228571,13.3348,2133.2,2133.1,2.90695]
[1617408228971,16.24175,2133.2,2133.1,2.90695]
[1617408229671,13.3348,2133.2,2133.1,2.90695]
[1617408230375,14.2607,2133.2,2133.1,2.90695]
[1617408230573,13.3348,2133.2,2133.1,2.90695]
[1617408230974,16.24175,2133.2,2133.1,2.90695]
[1617408232476,16.24175,2133.2,2131.9,4.90885572]
[1617408232676,17.69305,2133.2,2131.9,4.90885572]
[1617408232877,17.69305,2133.2,2131.8,4.90899964]
[1617408233079,14.7861,2133.2,2132.5,2.90695]
[1617408235078,14.7861,2133.2,2132.8,2.90695]
[1617408235278,13.3348,2133.2,2132.8,2.90695]
[1617408235778,13.3348,2133.2,2132.8,4.27285]
[1617408236981,2.90695,2132.9,2132.8,2.90695]
[1617408237179,13.3348,2133.2,2132.8,2.90695]
[1617408238984,2.90695,2132.9,2132.8,2.90695]
[1617408239185,2.90695,2132.9,2132.3,4.91185126]
[1617408239985,2.90695,2132.9,2132.0,4.91234698]
[1617408240584,2.90695,2132.9,2131.7,6.00417779]
[1617408240585,2.90695,2132.9,2131.9,4.91265926]
[1617408241084,1.9117,2133.1,2132.1,2.90695]
[1617408242086,78.6192,2133.1,2131.7,4.91304241]
[1617408242285,78.6192,2133.1,2131.6,4.91325423]
[1617408242688,78.6192,2133.1,2131.4,4.91357283]
[1617408243086,2.90695,2131.5,2131.1,4.91438231]
[1617408243285,4.22725,2131.5,2131.1,4.91438231]
[1617408243486,4.22725,2131.5,2130.7,4.91473028]
[1617408243786,4.22725,2131.5,2130.4,4.91447317]
[1617408244186,4.22725,2131.5,2130.3,4.91517022]
[1617408244386,5.17335,2131.5,2130.3,4.91517022]
[1617408244589,5.17335,2131.5,2130.2,4.91508253]
[1617408244792,5.17335,2131.5,2130.1,4.91484295]
[1617408245287,2.2664,2131.5,2130.3,2.90695]
[1617408245888,71.0704,2131.1,2130.3,2.90695]
[1617408247195,2.90695,2130.4,2129.7,4.91578589]
[1617408247392,4.29175,2130.4,2129.7,4.91578589]
[1617408247793,4.29175,2130.4,2128.7,9.29297648]
[1617408247794,4.29175,2130.4,2129.6,4.91612435]
[1617408249195,1.3848,2130.4,2129.8,2.90695]
[1617408250997,1.3848,2130.4,2129.4,4.91636428]
[1617408251301,2.90695,2129.5,2129.4,4.91636428]
[1617408251597,4.58515,2129.5,2129.3,2.90695]
[1617408251797,4.58515,2129.5,2129.4,4.91649674]
[1617408252300,71.0704,2131.1,2129.3,2.90695]
[1617408252900,26.0971,2131.4,2129.8,4.91605781]
[1617408253099,26.0971,2131.4,2130.3,56.4985]
[1617408253301,26.0971,2131.4,2130.4,2.90695]
[1617408254199,26.0971,2131.4,2129.7,4.9162981]
[1617408254400,28.0579,2131.4,2128.8,6.00140209]
[1617408254600,28.0579,2131.4,2128.8,1.1]
[1617408255300,28.0579,2131.4,2129.4,2.90695]
[1617408257002,70.1262,2130.9,2129.4,2.90695]
[1617408257301,2.90695,2129.5,2129.4,2.90695]
[1617408257701,1.2993,2130.4,2129.4,2.90695]
[1617408258503,72.4067,2130.9,2129.4,2.90695]
[1617408259104,72.4067,2130.9,2128.7,1.1]
[1617408259305,72.4067,2130.9,2128.9,2.90695]
[1617408261306,2.90695,2129.0,2128.9,2.90695]
[1617408261606,4.91575,2129.0,2128.2,1.1]
[1617408262507,4.91575,2129.0,2128.0,4.89973632]
[1617408262908,4.91575,2129.0,2127.9,4.89973327]
[1617408263209,2.90695,2128.1,2128.0,2.90695]
[1617408263408,4.15055,2128.1,2128.0,2.90695]
[1617408264911,4.15055,2128.1,2128.0,5e-05]
[1617408265110,4.15055,2128.1,2126.9,4.9020961]
[1617408265314,1.2436,2128.1,2127.5,2.90695]
[1617408267410,2.90695,2127.6,2127.5,2.90695]
[1617408267611,4.30915,2127.6,2127.5,2.90695]
[1617408270515,4.30915,2127.6,2126.2,0.9316]
[1617408270814,4.30915,2127.6,2125.6,0.9276]
[1617408271415,1.4022,2127.6,2127.0,2.90695]
[1617408271719,13.7526,2127.8,2127.0,2.90695]
[1617408272215,13.7526,2127.8,2125.8,1.4201]
[1617408272616,13.7526,2127.8,2125.8,2.356]
[1617408273418,13.7526,2127.8,2126.9,2.90695]
[1617408275422,2.90695,2127.0,2126.6,2.90695]
[1617408275621,4.12485,2127.0,2126.6,2.90695]
[1617408277523,4.12485,2127.0,2126.9,2.90695]
[1617408278625,4.12485,2127.0,2125.8,0.9359]
[1617408279324,4.12485,2127.0,2125.6,0.9276]
[1617408279525,1.2179,2127.0,2126.6,2.90695]
[1617408280526,0.9382,2127.4,2126.6,2.90695]
[1617408280726,10.0,2127.6,2126.6,2.90695]
[1617408281627,10.0,2127.6,2126.4,1.4948]
[1617408281628,10.0,2127.6,2127.3,2.90695]
[1617408283630,2.90695,2127.4,2127.3,2.90695]
[1617408285430,10.0,2127.6,2127.3,2.90695]
[1617408285629,10.0,2127.6,2127.3,4.23875]
[1617408286829,10.0,2127.6,2127.3,2.90695]
[1617408287629,12.90695,2127.6,2127.3,2.90695]
[1617408288030,12.90695,2127.6,2126.3,1.1]
[1617408288231,14.15215,2127.6,2125.1,1.1]
[1617408288432,87.88745,2127.6,2125.1,1.1]
[1617408289032,12.621,2127.5,2125.1,1.1]
[1617408289434,12.621,2127.5,2125.1,2.04]
[1617408289636,12.621,2127.5,2126.6,2.90695]
[1617408291739,2.90695,2126.7,2126.6,2.90695]
[1617408291943,4.25055,2126.7,2126.6,2.90695]
[1617408292841,5.20465,2126.7,2126.6,2.90695]
[1617408293142,5.20465,2126.7,2124.6,1.1]
[1617408293542,1.3436,2126.7,2126.5,2.90695]
[1617408295546,2.90695,2126.6,2126.5,2.90695]
[1617408296648,2.90695,2126.6,2126.5,3.84985]
[1617408297046,2.90695,2126.6,2126.5,2.90695]
[1617408297347,2.90695,2126.6,2125.7,1.1]
[1617408297646,1.3436,2126.7,2126.2,2.90695]
[1617408297848,0.9263,2126.8,2126.2,2.90695]
[1617408298347,0.9263,2126.8,2125.7,1.1]
[1617408298547,2.1982,2126.8,2125.7,1.1]
[1617408299550,2.1982,2126.8,2125.9,2.90695]
[1617408299748,2.1982,2126.8,2125.7,1.1]
[1617408299948,2.1982,2126.8,2123.9,1.1]
[1617408300749,13.517,2126.7,2123.9,1.1]
[1617408300949,13.517,2126.7,2123.9,8.769]
[1617408301651,13.517,2126.7,2125.8,2.90695]
[1617408303651,2.90695,2125.9,2125.8,2.90695]
[1617408304152,2.90695,2125.9,2124.3,1.1]
[1617408304833,55.7298,2125.6,2124.3,1.1]
[1617408304951,57.6276,2125.6,2124.3,1.1]
[1617408305651,57.6276,2125.6,2125.4,2.90695]
[1617408306252,55.7298,2125.6,2125.4,2.90695]
[1617408307653,2.90695,2126.2,2125.4,2.90695]
[1617408309659,2.90695,2126.2,2126.1,2.90695]
[1617408310367,2.90695,2126.2,2124.1,1.1]
[1617408310562,4.60205,2126.2,2124.1,1.1]
[1617408310761,5.53155,2126.2,2124.1,1.1]
[1617408311765,1.6951,2126.2,2125.7,2.90695]
[1617408312563,1.6951,2126.2,2124.1,1.1]
[1617408313763,1.6951,2126.2,2125.5,2.90695]
[1617408314465,1.6951,2126.2,2125.6,0.14780184]
[1617408314864,2.6272,2126.2,2125.6,0.14780184]
[1617408315765,2.90695,2125.7,2125.6,0.14780184]
[1617408315965,4.30195,2125.7,2125.6,0.14780184]
[1617408316967,4.30195,2125.7,2125.5,2.90695]
[1617408319069,2.90695,2125.7,2125.5,2.90695]
[1617408319270,58.2004,2126.0,2125.5,2.90695]
[1617408319869,58.2004,2126.0,2125.9,2.90695]
[1617408320371,58.2004,2126.0,2125.9,3.05454386]
[1617408321173,12.5333,2126.6,2125.9,3.05454386]
[1617408321572,12.5333,2126.6,2126.0,0.14757706]
[1617408321773,2.90695,2126.8,2126.5,2.90695]
[1617408324875,13.1104,2127.5,2126.5,2.90695]
[1617408325774,13.1104,2127.5,2127.1,2.90695]
[1617408327677,10.0,2127.6,2127.1,2.90695]
[1617408327978,10.0,2127.6,2127.4,2.90695]
[1617408330580,10.0,2127.6,2127.5,0.14770491]
[1617408337293,10.0,2127.6,2127.4,4.00695]
[1617408339903,9.3902,2127.6,2127.4,4.00695]
[1617408340101,9.3902,2127.6,2127.5,0.14640664]
[1617408340302,8.8359,2127.6,2127.5,0.14640664]
[1617408340502,7.9158,2127.6,2127.5,0.14640664]
[1617408341306,7.1049,2127.6,2127.5,1.07470664]
[1617408341502,5.2549,2127.6,2127.5,2.17470664]
[1617408342202,5.1995,2127.6,2127.5,2.17470664]
[1617408342405,3.638,2127.6,2127.5,7.06341432]
[1617408342807,3.5819,2127.6,2127.5,7.06341432]
[1617408344105,3.5819,2127.6,2127.5,2.17470664]
[1617408347713,2.8791,2127.6,2127.5,2.17470664]
[1617408348114,2.8791,2127.6,2127.5,2.0283]
[1617408348315,1.1096,2127.6,2127.5,2.0283]
[1617408348514,0.4153,2127.6,2127.5,2.0283]
[1617408348717,70.3233,2129.6,2127.5,2.17444947]
[1617408348919,70.3233,2129.6,2127.5,3.52014947]
[1617408349118,70.3233,2129.6,2127.6,0.14611466]
[1617408349319,70.3233,2129.6,2128.6,4.91311318]
[1617408349518,70.3233,2129.6,2128.7,1.1]
[1617408349717,70.3233,2129.6,2128.8,4.91268535]
[1617408350018,70.3233,2129.6,2129.5,2.90695]
[1617408350218,2.90695,2130.3,2129.5,2.90695]
[1617408352018,2.90695,2130.3,2130.2,2.90695]
[1617408352220,13.6523,2130.8,2130.2,2.90695]
[1617408353921,16.55925,2130.8,2130.7,2.90695]
[1617408354621,13.6523,2130.8,2130.7,2.90695]
[1617408358124,13.6523,2130.8,2129.5,1.1]
[1617408358423,13.6523,2130.8,2129.4,0.9315]
[1617408358424,15.3388,2130.8,2130.0,1.1]
[1617408359627,13.6523,2130.8,2130.0,1.1]
[1617408360025,71.3141,2131.1,2131.0,2.90695]
[1617408361930,2.90695,2131.5,2131.0,2.90695]
[1617408363935,2.90695,2132.1,2131.4,2.90695]
[1617408366038,0.9321,2132.3,2131.7,2.90695]
[1617408366237,0.9465,2132.7,2131.7,2.90695]
[1617408366537,13.2116,2132.8,2131.7,2.90695]